[Event "Live Chess"]
[Site "Chess.com"]
[Date "2023.05.20"]
[Round "-"]
[White "alanmike75"]
[Black "BostonStrangler"]
[Result "1/2-1/2"]
[WhiteElo "1516"]
[BlackElo "2046"]
[TimeControl "300"]
[EndTime "11:32:19 PDT"]
[Termination "Game drawn by repetition"]

1. e4 {[%clk 0:04:59]} 1... c5 {[%clk 0:04:58.4]} 2. Nf3 {[%clk 0:04:58]} 2...
g6 {[%clk 0:04:57]} 3. d4 {[%clk 0:04:56.8]} 3... cxd4 {[%clk 0:04:56.1]} 4.
Nxd4 {[%clk 0:04:55.7]} 4... Nc6 {[%clk 0:04:54.6]} 5. Nxc6 {[%clk 0:04:54]}
5... bxc6 {[%clk 0:04:52.5]} 6. Bd3 {[%clk 0:04:52.8]} 6... Bg7 {[%clk
0:04:51.2]} 7. O-O {[%clk 0:04:51.8]} 7... d6 {[%clk 0:04:49.9]} 8. Re1 {[%clk
0:04:50.9]} 8... Nf6 {[%clk 0:04:48.6]} 9. c4 {[%clk 0:04:48.7]} 9... O-O {[%clk
0:04:47.3]} 10. Nc3 {[%clk 0:04:47.3]} 10... Nd7 {[%clk 0:04:44.5]} 11. Be3
{[%clk 0:04:42.6]} 11... a5 {[%clk 0:04:41.6]} 12. Rc1 {[%clk 0:04:40.9]} 12...
Ne5 {[%clk 0:04:31.4]} 13. Be2 {[%clk 0:04:38.6]} 13... Be6 {[%clk 0:04:23.1]}
14. b3 {[%clk 0:04:37.1]} 14... Qb8 {[%clk 0:04:00.7]} 15. f4 {[%clk 0:04:33.3]}
15... Nd7 {[%clk 0:03:57.6]} 16. Kh1 {[%clk 0:04:30.5]} 16... Nf6 {[%clk
0:03:55.5]} 17. Bf3 {[%clk 0:04:27.8]} 17... Rd8 {[%clk 0:03:46.8]} 18. Qe2
{[%clk 0:04:24]} 18... Qb4 {[%clk 0:03:44.3]} 19. Bd2 {[%clk 0:04:15.9]} 19...
Qa3 {[%clk 0:03:41.5]} 20. Be3 {[%clk 0:04:11.9]} 20... Qb4 {[%clk 0:03:39.4]}
21. Bd2 {[%clk 0:04:10.6]} 21... Qb6 {[%clk 0:03:30.5]} 22. Be3 {[%clk
0:04:09.3]} 22... Qc7 {[%clk 0:03:29.2]} 23. Nd5 {[%clk 0:03:59.1]} 23... cxd5
{[%clk 0:03:25.1]} 24. cxd5 {[%clk 0:03:57.9]} 24... Qd7 {[%clk 0:03:20.9]} 25.
dxe6 {[%clk 0:03:56.5]} 25... Qxe6 {[%clk 0:03:20.8]} 26. Bd4 {[%clk 0:03:51.4]}
26... Rac8 {[%clk 0:03:15.1]} 27. e5 {[%clk 0:03:46.8]} 27... dxe5 {[%clk
0:03:12.5]} 28. Bxe5 {[%clk 0:03:45.7]} 28... Nd7 {[%clk 0:03:04.9]} 29. Rxc8
{[%clk 0:03:39.7]} 29... Rxc8 {[%clk 0:03:03.4]} 30. Bxg7 {[%clk 0:03:35.3]}
30... Qxe2 {[%clk 0:02:56.7]} 31. Bxe2 {[%clk 0:03:30.4]} 31... Kxg7 {[%clk
0:02:54.7]} 32. Bc4 {[%clk 0:03:27.8]} 32... e6 {[%clk 0:02:53]} 33. g3 {[%clk
0:03:26.4]} 33... Nb6 {[%clk 0:02:44]} 34. Rc1 {[%clk 0:03:14.1]} 34... Kf6
{[%clk 0:02:39.8]} 35. Kg2 {[%clk 0:03:12.8]} 35... Ke7 {[%clk 0:02:32.1]} 36.
Kf3 {[%clk 0:03:10.5]} 36... Kd6 {[%clk 0:02:30]} 37. Rd1+ {[%clk 0:02:59.5]}
37... Kc5 {[%clk 0:02:27.8]} 38. Rc1 {[%clk 0:02:54]} 38... Kb4 {[%clk
0:02:24.4]} 39. Ke4 {[%clk 0:02:34]} 39... Nxc4 {[%clk 0:02:21.7]} 40. bxc4
{[%clk 0:02:32.8]} 40... Rxc4+ {[%clk 0:02:20.1]} 41. Rxc4+ {[%clk 0:02:30.7]}
41... Kxc4 {[%clk 0:02:19.2]} 42. Ke5 {[%clk 0:02:29.7]} 42... Kc3 {[%clk
0:02:12.6]} 43. Kf6 {[%clk 0:02:27.8]} 43... Kb2 {[%clk 0:02:11.8]} 44. Kxf7
{[%clk 0:02:26.8]} 44... Kxa2 {[%clk 0:02:11]} 45. Kxe6 {[%clk 0:02:25.8]} 45...
Kb2 {[%clk 0:02:09.5]} 46. g4 {[%clk 0:02:24.9]} 46... a4 {[%clk 0:02:08.6]} 47.
f5 {[%clk 0:02:23.5]} 47... gxf5 {[%clk 0:02:00.5]} 48. gxf5 {[%clk 0:02:22.4]}
48... a3 {[%clk 0:01:59.6]} 49. f6 {[%clk 0:02:21.8]} 49... a2 {[%clk
0:01:58.2]} 50. f7 {[%clk 0:02:21.7]} 50... a1=Q {[%clk 0:01:56.5]} 51. f8=Q
{[%clk 0:02:21.6]} 51... Qa6+ {[%clk 0:01:48.9]} 52. Ke7 {[%clk 0:02:03.7]}
52... Qa3+ {[%clk 0:01:34.7]} 53. Kf7 {[%clk 0:02:01.5]} 53... Qf3+ {[%clk
0:01:32.3]} 54. Kg7 {[%clk 0:01:56.6]} 54... Qg2+ {[%clk 0:01:27.8]} 55. Kxh7
{[%clk 0:01:53.4]} 55... Qxh2+ {[%clk 0:01:26.7]} 56. Kg7 {[%clk 0:01:52.4]}
56... Qg2+ {[%clk 0:01:25.1]} 57. Kh7 {[%clk 0:01:50.4]} 57... Qh2+ {[%clk
0:01:24]} 58. Kg7 {[%clk 0:01:49.5]} 58... Qg2+ {[%clk 0:01:23.1]} 59. Kh7
{[%clk 0:01:48.6]} 59... Qh2+ {[%clk 0:01:22.3]} 1/2-1/2

[Event "Live Chess"]
[Site "Chess.com"]
[Date "2023.05.20"]
[Round "-"]
[White "zdanevych"]
[Black "mightysmasher"]
[Result "0-1"]
[WhiteElo "1527"]
[BlackElo "2143"]
[TimeControl "300"]
[EndTime "11:32:19 PDT"]
[Termination "mightysmasher won by resignation"]

1. d4 {[%clk 0:04:58.9]} 1... d5 {[%clk 0:04:58.7]} 2. c4 {[%clk 0:04:57.6]}
2... e6 {[%clk 0:04:57.5]} 3. Nc3 {[%clk 0:04:56.2]} 3... Nf6 {[%clk 0:04:56.5]}
4. Nf3 {[%clk 0:04:55.2]} 4... Be7 {[%clk 0:04:54.9]} 5. h3 {[%clk 0:04:54]}
5... O-O {[%clk 0:04:54.1]} 6. Bf4 {[%clk 0:04:53.3]} 6... Ne4 {[%clk
0:04:53.2]} 7. e3 {[%clk 0:04:49]} 7... f5 {[%clk 0:04:51.3]} 8. Be2 {[%clk
0:04:39.4]} 8... Bf6 {[%clk 0:04:49.9]} 9. Ne5 {[%clk 0:04:37.6]} 9... c5 {[%clk
0:04:48.9]} 10. O-O {[%clk 0:04:35.2]} 10... Nc6 {[%clk 0:04:47.1]} 11. cxd5
{[%clk 0:04:33.2]} 11... exd5 {[%clk 0:04:45.8]} 12. Nxc6 {[%clk 0:04:31.7]}
12... bxc6 {[%clk 0:04:43.8]} 13. Nxe4 {[%clk 0:04:27.7]} 13... fxe4 {[%clk
0:04:41.9]} 14. dxc5 {[%clk 0:04:26.2]} 14... Bxb2 {[%clk 0:04:40.3]} 15. Rb1
{[%clk 0:04:24.5]} 15... Bf6 {[%clk 0:04:39.4]} 16. Bd6 {[%clk 0:04:23.3]} 16...
Be7 {[%clk 0:04:38]} 17. Bxe7 {[%clk 0:04:17.9]} 17... Qxe7 {[%clk 0:04:36.9]}
18. Qa4 {[%clk 0:04:16.6]} 18... Bd7 {[%clk 0:04:34.5]} 19. Qd4 {[%clk
0:04:08.7]} 19... Rf6 {[%clk 0:04:30.8]} 20. f3 {[%clk 0:04:02.6]} 20... Rg6
{[%clk 0:04:28.5]} 21. Kh1 {[%clk 0:04:00.6]} 21... Qh4 {[%clk 0:04:25.5]} 22.
fxe4 {[%clk 0:03:58.2]} 22... Bxh3 {[%clk 0:04:23.8]} 23. e5 {[%clk 0:03:50.9]}
23... Bxg2+ {[%clk 0:04:21.4]} 0-1

[Event "Live Chess"]
[Site "Chess.com"]
[Date "2023.05.20"]
[Round "-"]
[White "PaulHumphreys"]
[Black "mattlirious"]
[Result "0-1"]
[WhiteElo "1364"]
[BlackElo "1324"]
[TimeControl "300"]
[EndTime "11:32:26 PDT"]
[Termination "mattlirious won on time"]

1. d4 {[%clk 0:04:58.2]} 1... f5 {[%clk 0:04:56.9]} 2. Nc3 {[%clk 0:04:55.8]}
2... Nf6 {[%clk 0:04:55.1]} 3. Bg5 {[%clk 0:04:53]} 3... e6 {[%clk 0:04:54.2]}
4. e4 {[%clk 0:04:50.1]} 4... Be7 {[%clk 0:04:49.2]} 5. e5 {[%clk 0:04:38.2]}
5... Ng8 {[%clk 0:04:39.8]} 6. h4 {[%clk 0:04:32.8]} 6... h6 {[%clk 0:04:35.5]}
7. Qh5+ {[%clk 0:04:24.1]} 7... Kf8 {[%clk 0:04:29.5]} 8. Nf3 {[%clk 0:04:17.6]}
8... Qe8 {[%clk 0:04:20.4]} 9. Bxe7+ {[%clk 0:03:56.6]} 9... Nxe7 {[%clk
0:04:17.2]} 10. Qxe8+ {[%clk 0:03:50.6]} 10... Kxe8 {[%clk 0:04:17.1]} 11. h5
{[%clk 0:03:48.6]} 11... Nbc6 {[%clk 0:04:13.2]} 12. O-O-O {[%clk 0:03:46.7]}
12... b6 {[%clk 0:04:11.8]} 13. Be2 {[%clk 0:03:39.1]} 13... Bb7 {[%clk
0:04:10.4]} 14. Nh4 {[%clk 0:03:32]} 14... Nb4 {[%clk 0:04:05.8]} 15. Bf3 {[%clk
0:03:29.5]} 15... Bxf3 {[%clk 0:03:59.8]} 16. gxf3 {[%clk 0:03:26.9]} 16... d6
{[%clk 0:03:53.3]} 17. f4 {[%clk 0:03:24]} 17... Kd7 {[%clk 0:03:50.4]} 18. Rhg1
{[%clk 0:03:20]} 18... Rag8 {[%clk 0:03:46.6]} 19. Rg2 {[%clk 0:03:10.6]} 19...
d5 {[%clk 0:03:35.5]} 20. Rdg1 {[%clk 0:03:08]} 20... Rh7 {[%clk 0:03:31.8]} 21.
Ng6 {[%clk 0:02:34.6]} 21... Nbc6 {[%clk 0:03:23.2]} 22. Ne2 {[%clk 0:02:31.7]}
22... Nxg6 {[%clk 0:03:20.2]} 23. hxg6 {[%clk 0:02:29.8]} 23... Rhh8 {[%clk
0:03:18.6]} 24. c3 {[%clk 0:02:25.4]} 24... h5 {[%clk 0:03:16.9]} 25. Ng3 {[%clk
0:02:23.9]} 25... h4 {[%clk 0:03:15.1]} 26. Ne2 {[%clk 0:02:19]} 26... h3 {[%clk
0:03:13.2]} 27. Rh2 {[%clk 0:02:17.9]} 27... Ne7 {[%clk 0:03:11]} 28. Rg3 {[%clk
0:02:07]} 28... a5 {[%clk 0:03:04.4]} 29. Ng1 {[%clk 0:02:05.2]} 29... Rh4
{[%clk 0:02:51.9]} 30. Rhxh3 {[%clk 0:01:44.2]} 30... Rxf4 {[%clk 0:02:48.9]}
31. f3 {[%clk 0:01:32.2]} 31... c5 {[%clk 0:02:34.4]} 32. Ne2 {[%clk 0:01:28]}
32... Re4 {[%clk 0:02:01.5]} 33. fxe4 {[%clk 0:01:23.1]} 33... dxe4 {[%clk
0:01:54.5]} 34. Nf4 {[%clk 0:01:05.2]} 34... cxd4 {[%clk 0:01:47.5]} 35. cxd4
{[%clk 0:01:03.6]} 35... Rc8+ {[%clk 0:01:45.1]} 36. Kd2 {[%clk 0:01:02.2]}
36... Rc4 {[%clk 0:01:44.4]} 37. Rd3 {[%clk 0:00:56.1]} 37... exd3 {[%clk
0:01:42.2]} 38. Kxd3 {[%clk 0:00:50.5]} 38... Ra4 {[%clk 0:01:35.7]} 39. a3
{[%clk 0:00:48.6]} 39... Nc6 {[%clk 0:01:28.8]} 40. Ne2 {[%clk 0:00:44.1]} 40...
b5 {[%clk 0:01:23.1]} 41. Rh7 {[%clk 0:00:42.5]} 41... b4 {[%clk 0:01:03.8]} 42.
Rxg7+ {[%clk 0:00:40.5]} 42... Ke8 {[%clk 0:00:59.7]} 43. axb4 {[%clk
0:00:32.4]} 43... Nxb4+ {[%clk 0:00:57.7]} 44. Kc3 {[%clk 0:00:28.5]} 44... Nd5+
{[%clk 0:00:55.8]} 45. Kc2 {[%clk 0:00:20.3]} 45... f4 {[%clk 0:00:46]} 46. Ra7
{[%clk 0:00:13.9]} 46... Ne3+ {[%clk 0:00:37.3]} 47. Kd2 {[%clk 0:00:11.5]}
47... Nf1+ {[%clk 0:00:22.6]} 48. Ke1 {[%clk 0:00:09.6]} 48... Ng3 {[%clk
0:00:19.8]} 49. g7 {[%clk 0:00:07.6]} 49... Ra1+ {[%clk 0:00:19.1]} 50. Kf2
{[%clk 0:00:04.4]} 50... Rf1+ {[%clk 0:00:18.3]} 51. Kg2 {[%clk 0:00:03.5]}
51... Rf2+ {[%clk 0:00:13.7]} 52. Kxf2 {[%clk 0:00:00.2]} 52... Ne4+ {[%clk
0:00:12.7]} 0-1

[Event "Live Chess"]
[Site "Chess.com"]
[Date "2023.05.20"]
[Round "-"]
[White "LL220284LL"]
[Black "Supertromp"]
[Result "1-0"]
[WhiteElo "2393"]
[BlackElo "2178"]
[TimeControl "300"]
[EndTime "11:32:32 PDT"]
[Termination "LL220284LL won on time"]

1. Nf3 {[%clk 0:04:58.3]} 1... Nf6 {[%clk 0:04:57.6]} 2. g3 {[%clk 0:04:57.6]}
2... g6 {[%clk 0:04:56.8]} 3. Bg2 {[%clk 0:04:57.5]} 3... Bg7 {[%clk 0:04:56]}
4. O-O {[%clk 0:04:56.5]} 4... O-O {[%clk 0:04:55.6]} 5. Re1 {[%clk 0:04:54.8]}
5... d6 {[%clk 0:04:49.2]} 6. e4 {[%clk 0:04:53.6]} 6... e5 {[%clk 0:04:48.4]}
7. Nc3 {[%clk 0:04:52]} 7... Nc6 {[%clk 0:04:46.7]} 8. d4 {[%clk 0:04:50.9]}
8... Bg4 {[%clk 0:04:42.6]} 9. d5 {[%clk 0:04:49]} 9... Nd4 {[%clk 0:04:41.4]}
10. Be3 {[%clk 0:04:47.3]} 10... Nxf3+ {[%clk 0:04:35.8]} 11. Bxf3 {[%clk
0:04:47.2]} 11... Bxf3 {[%clk 0:04:35.1]} 12. Qxf3 {[%clk 0:04:46.8]} 12... Qd7
{[%clk 0:04:23.6]} 13. Qg2 {[%clk 0:04:38.9]} 13... Ng4 {[%clk 0:04:13.6]} 14.
Bd2 {[%clk 0:04:35.4]} 14... f5 {[%clk 0:04:12.5]} 15. f3 {[%clk 0:04:32.6]}
15... Nf6 {[%clk 0:04:05]} 16. Ne2 {[%clk 0:04:30.3]} 16... fxe4 {[%clk
0:04:03.7]} 17. fxe4 {[%clk 0:04:30.2]} 17... Qa4 {[%clk 0:03:51.2]} 18. Nc3
{[%clk 0:03:57.1]} 18... Qxc2 {[%clk 0:03:48.7]} 19. Bg5 {[%clk 0:03:51.8]}
19... Qxg2+ {[%clk 0:03:43.2]} 20. Kxg2 {[%clk 0:03:51.7]} 20... h6 {[%clk
0:03:38.1]} 21. Be3 {[%clk 0:03:49.3]} 21... Ng4 {[%clk 0:03:36.8]} 22. Bg1
{[%clk 0:03:48.6]} 22... h5 {[%clk 0:03:26.7]} 23. Rac1 {[%clk 0:03:45.7]} 23...
Bh6 {[%clk 0:03:25.3]} 24. Rc2 {[%clk 0:03:43.8]} 24... Rf7 {[%clk 0:03:12.4]}
25. Nb5 {[%clk 0:03:40.8]} 25... Raf8 {[%clk 0:02:59.6]} 26. Ree2 {[%clk
0:03:39.5]} 26... h4 {[%clk 0:02:29.1]} 27. Nxc7 {[%clk 0:03:32.3]} 27... Rf1
{[%clk 0:02:21.4]} 28. Ne6 {[%clk 0:03:22.2]} 28... R8f7 {[%clk 0:02:17.2]} 29.
gxh4 {[%clk 0:03:16.5]} 29... Ra1 {[%clk 0:02:06.5]} 30. h3 {[%clk 0:03:06.9]}
30... Nf6 {[%clk 0:02:05.4]} 31. a3 {[%clk 0:02:58]} 31... Nh5 {[%clk
0:02:04.2]} 32. Be3 {[%clk 0:02:48.3]} 32... Bxe3 {[%clk 0:01:56.2]} 33. Rxe3
{[%clk 0:02:48.2]} 33... Rff1 {[%clk 0:01:54.7]} 34. Rc8+ {[%clk 0:02:42.7]}
34... Kh7 {[%clk 0:01:45.2]} 35. Ng5+ {[%clk 0:02:38.5]} 35... Kh6 {[%clk
0:01:44.6]} 36. Ne6 {[%clk 0:02:20]} 36... Nf4+ {[%clk 0:01:26.8]} 37. Nxf4
{[%clk 0:02:09]} 37... exf4 {[%clk 0:01:26.7]} 38. Rec3 {[%clk 0:02:02.6]} 38...
Rg1+ {[%clk 0:01:10.3]} 39. Kf2 {[%clk 0:01:58.3]} 39... Raf1+ {[%clk
0:01:09.2]} 40. Ke2 {[%clk 0:01:57.5]} 40... Re1+ {[%clk 0:01:05.3]} 41. Kd2
{[%clk 0:01:55.5]} 41... Rd1+ {[%clk 0:01:04.3]} 42. Kc2 {[%clk 0:01:54.9]}
42... Rde1 {[%clk 0:00:49.2]} 43. R3c7 {[%clk 0:01:50.3]} 43... g5 {[%clk
0:00:45.8]} 44. hxg5+ {[%clk 0:01:44.7]} 44... Kxg5 {[%clk 0:00:42.7]} 45. Rg8+
{[%clk 0:01:43.5]} 45... Kf6 {[%clk 0:00:41.3]} 46. Rxg1 {[%clk 0:01:43.4]}
46... Rxg1 {[%clk 0:00:40.8]} 47. Kd3 {[%clk 0:01:40.2]} 47... Rg3+ {[%clk
0:00:36.6]} 48. Ke2 {[%clk 0:01:39.1]} 48... Rxh3 {[%clk 0:00:36.5]} 49. Rxb7
{[%clk 0:01:38]} 49... Ke5 {[%clk 0:00:34]} 50. Rxa7 {[%clk 0:01:35.5]} 50...
Rh2+ {[%clk 0:00:33]} 51. Kf3 {[%clk 0:01:33.6]} 51... Rxb2 {[%clk 0:00:32.9]}
52. Re7+ {[%clk 0:01:31.9]} 52... Kd4 {[%clk 0:00:30.5]} 53. Kxf4 {[%clk
0:01:30.6]} 53... Rf2+ {[%clk 0:00:29.7]} 54. Kg5 {[%clk 0:01:29.5]} 54... Ra2
{[%clk 0:00:28.8]} 55. Kf5 {[%clk 0:01:25.9]} 55... Rxa3 {[%clk 0:00:22.6]} 56.
Ke6 {[%clk 0:01:25.1]} 56... Kxe4 {[%clk 0:00:21.2]} 57. Kxd6+ {[%clk 0:01:24]}
57... Kd4 {[%clk 0:00:20.8]} 58. Ke6 {[%clk 0:01:22.2]} 58... Ra6+ {[%clk
0:00:20.2]} 59. d6 {[%clk 0:01:21.1]} 59... Kc5 {[%clk 0:00:19.7]} 60. Rc7+
{[%clk 0:01:20.5]} 60... Kb6 {[%clk 0:00:17.2]} 61. Rc1 {[%clk 0:01:19.9]} 61...
Ra2 {[%clk 0:00:13.8]} 62. d7 {[%clk 0:01:18.3]} 62... Re2+ {[%clk 0:00:12.8]}
63. Kd6 {[%clk 0:01:17.9]} 63... Rd2+ {[%clk 0:00:12.3]} 64. Ke7 {[%clk
0:01:17.5]} 64... Re2+ {[%clk 0:00:11.7]} 65. Kd8 {[%clk 0:01:17]} 65... Kb7
{[%clk 0:00:11.3]} 66. Rb1+ {[%clk 0:01:15.7]} 66... Kc6 {[%clk 0:00:10.8]} 67.
Kc8 {[%clk 0:01:14.1]} 1-0

[Event "Live Chess"]
[Site "Chess.com"]
[Date "2023.05.20"]
[Round "-"]
[White "Pandreq"]
[Black "dudeasy"]
[Result "1-0"]
[WhiteElo "1277"]
[BlackElo "1100"]
[TimeControl "300"]
[EndTime "11:32:35 PDT"]
[Termination "Pandreq won by resignation"]

1. d4 {[%clk 0:04:56.9]} 1... Nf6 {[%clk 0:04:57.8]} 2. c4 {[%clk 0:04:55.7]}
2... e6 {[%clk 0:04:56]} 3. Nc3 {[%clk 0:04:54.9]} 3... Bb4 {[%clk 0:04:54.8]}
4. a3 {[%clk 0:04:53.3]} 4... Bxc3+ {[%clk 0:04:52.8]} 5. bxc3 {[%clk
0:04:53.2]} 5... b6 {[%clk 0:04:52]} 6. Bg5 {[%clk 0:04:46.6]} 6... Bb7 {[%clk
0:04:50.1]} 7. e4 {[%clk 0:04:44.9]} 7... h6 {[%clk 0:04:47.3]} 8. Bxf6 {[%clk
0:04:32.1]} 8... Qxf6 {[%clk 0:04:45.6]} 9. e5 {[%clk 0:04:31.1]} 9... Qg6
{[%clk 0:04:41.7]} 10. Nf3 {[%clk 0:04:26.1]} 10... Nc6 {[%clk 0:04:33.2]} 11.
g3 {[%clk 0:04:20.4]} 11... Ne7 {[%clk 0:04:27.6]} 12. Bd3 {[%clk 0:04:18.6]}
12... Bxf3 {[%clk 0:04:20.1]} 13. Qxf3 {[%clk 0:04:10.8]} 13... Qg5 {[%clk
0:04:14.1]} 14. Qxa8+ {[%clk 0:04:05.7]} 14... Nc8 {[%clk 0:04:11.1]} 15. Qxc8+
{[%clk 0:04:01.6]} 15... Qd8 {[%clk 0:04:09.5]} 16. Qxd8+ {[%clk 0:03:59.9]} 1-0

[Event "Live Chess"]
[Site "Chess.com"]
[Date "2023.05.20"]
[Round "-"]
[White "LiamClery2020"]
[Black "ossie57"]
[Result "1-0"]
[WhiteElo "2104"]
[BlackElo "1870"]
[TimeControl "300"]
[EndTime "11:32:44 PDT"]
[Termination "LiamClery2020 won by resignation"]

1. e4 {[%clk 0:04:57.5]} 1... d6 {[%clk 0:04:58.8]} 2. d4 {[%clk 0:04:54]} 2...
Nf6 {[%clk 0:04:57.9]} 3. Nc3 {[%clk 0:04:52.5]} 3... Nbd7 {[%clk 0:04:57.3]} 4.
f3 {[%clk 0:04:51.4]} 4... e5 {[%clk 0:04:56.1]} 5. dxe5 {[%clk 0:04:50.1]} 5...
dxe5 {[%clk 0:04:55.4]} 6. Be3 {[%clk 0:04:49.2]} 6... c6 {[%clk 0:04:54.8]} 7.
Qd2 {[%clk 0:04:48]} 7... Be7 {[%clk 0:04:53.6]} 8. Nge2 {[%clk 0:04:47]} 8...
O-O {[%clk 0:04:51.2]} 9. Ng3 {[%clk 0:04:46.1]} 9... Qc7 {[%clk 0:04:49.2]} 10.
Nf5 {[%clk 0:04:44.9]} 10... Bb4 {[%clk 0:04:38.5]} 11. Bh6 {[%clk 0:04:36.8]}
11... Bxc3 {[%clk 0:04:27.1]} 12. bxc3 {[%clk 0:04:35]} 12... g6 {[%clk
0:04:09.4]} 13. Bxf8 {[%clk 0:04:33.6]} 13... Kxf8 {[%clk 0:04:08.6]} 14. Qh6+
{[%clk 0:04:30.1]} 14... Ke8 {[%clk 0:04:05.1]} 15. Ng7+ {[%clk 0:04:28.4]}
15... Ke7 {[%clk 0:04:04.1]} 16. Bc4 {[%clk 0:04:16.7]} 16... b5 {[%clk
0:03:56.6]} 17. Bb3 {[%clk 0:04:15.2]} 17... Qa5 {[%clk 0:03:52.4]} 18. O-O
{[%clk 0:04:13.6]} 18... Qxc3 {[%clk 0:03:50.9]} 19. Rad1 {[%clk 0:04:11.1]}
19... Qc5+ {[%clk 0:03:38.3]} 20. Kh1 {[%clk 0:04:09.3]} 20... a5 {[%clk
0:03:28.1]} 21. f4 {[%clk 0:04:08.3]} 21... a4 {[%clk 0:03:26.8]} 22. fxe5
{[%clk 0:04:07.2]} 22... Qxe5 {[%clk 0:03:21.4]} 23. Nf5+ {[%clk 0:03:54.5]}
23... gxf5 {[%clk 0:03:13.5]} 24. exf5 {[%clk 0:03:49.8]} 24... Kd8 {[%clk
0:02:56.4]} 25. Bxf7 {[%clk 0:03:46]} 25... Kc7 {[%clk 0:02:43.4]} 26. Be6
{[%clk 0:03:38.8]} 26... Ng4 {[%clk 0:02:38.9]} 27. Qh4 {[%clk 0:03:30]} 27...
Ngf6 {[%clk 0:02:30]} 28. Rfe1 {[%clk 0:03:24.3]} 28... Qc3 {[%clk 0:02:20.2]}
29. Qf4+ {[%clk 0:03:22]} 29... Kb6 {[%clk 0:02:17.6]} 30. Qf2+ {[%clk 0:03:14]}
30... Ka6 {[%clk 0:02:14.8]} 31. Rd6 {[%clk 0:03:08.1]} 31... Qc5 {[%clk
0:02:07.2]} 32. Qxc5 {[%clk 0:03:01.9]} 32... Nxc5 {[%clk 0:02:02.3]} 33. Bxc8+
{[%clk 0:03:01]} 33... Rxc8 {[%clk 0:02:00.5]} 34. Rxf6 {[%clk 0:03:00.9]} 34...
b4 {[%clk 0:01:58.3]} 35. Rd6 {[%clk 0:02:42.2]} 35... Kb5 {[%clk 0:01:52.4]}
36. f6 {[%clk 0:02:40.1]} 36... Nb7 {[%clk 0:01:48.5]} 37. Rde6 {[%clk
0:02:36.3]} 1-0

[Event "Live Chess"]
[Site "Chess.com"]
[Date "2023.05.20"]
[Round "-"]
[White "mliszewski"]
[Black "luckywookie"]
[Result "1-0"]
[WhiteElo "1899"]
[BlackElo "729"]
[TimeControl "300"]
[EndTime "11:32:45 PDT"]
[Termination "mliszewski won by checkmate"]

1. d4 {[%clk 0:04:59.7]} 1... d5 {[%clk 0:04:56.1]} 2. Bf4 {[%clk 0:04:58.8]}
2... c5 {[%clk 0:04:45.3]} 3. e4 {[%clk 0:04:57.5]} 3... dxe4 {[%clk 0:04:41]}
4. d5 {[%clk 0:04:56.9]} 4... Nf6 {[%clk 0:04:32.1]} 5. Nc3 {[%clk 0:04:55.5]}
5... e6 {[%clk 0:04:09.7]} 6. Bb5+ {[%clk 0:04:53.5]} 6... Bd7 {[%clk 0:04:01]}
7. dxe6 {[%clk 0:04:52.3]} 7... Bxb5 {[%clk 0:03:54.1]} 8. exf7+ {[%clk
0:04:51.3]} 8... Ke7 {[%clk 0:03:50.4]} 9. Qxd8+ {[%clk 0:04:44.1]} 9... Kxd8
{[%clk 0:03:48.3]} 10. Nxb5 {[%clk 0:04:43.7]} 10... Nc6 {[%clk 0:03:35.9]} 11.
O-O-O+ {[%clk 0:04:36.4]} 11... Ke7 {[%clk 0:03:34.5]} 12. Nc7 {[%clk
0:04:23.1]} 12... Rd8 {[%clk 0:03:30]} 13. Rxd8 {[%clk 0:04:20.2]} 13... Nxd8
{[%clk 0:03:28.1]} 14. Ne2 {[%clk 0:04:15.1]} 14... Kxf7 {[%clk 0:03:24.4]} 15.
Nc3 {[%clk 0:04:13]} 15... Ne6 {[%clk 0:03:21.8]} 16. Nxe6 {[%clk 0:04:10.6]}
16... Kxe6 {[%clk 0:03:20.8]} 17. Re1 {[%clk 0:04:10.2]} 17... h6 {[%clk
0:03:13.4]} 18. Nxe4 {[%clk 0:04:08.8]} 18... Nxe4 {[%clk 0:03:11.4]} 19. Rxe4+
{[%clk 0:04:07.9]} 19... Kf5 {[%clk 0:03:10.1]} 20. Rc4 {[%clk 0:04:06.7]} 20...
Be7 {[%clk 0:03:00.7]} 21. Be3 {[%clk 0:04:05.5]} 21... b6 {[%clk 0:02:57.6]}
22. Rf4+ {[%clk 0:04:03.6]} 22... Kg6 {[%clk 0:02:46.5]} 23. g3 {[%clk
0:04:01.2]} 23... Rd8 {[%clk 0:02:44]} 24. h4 {[%clk 0:04:00.1]} 24... Kh7
{[%clk 0:02:41.4]} 25. h5 {[%clk 0:03:57.2]} 25... g6 {[%clk 0:02:36.8]} 26.
Rf7+ {[%clk 0:03:53.1]} 26... Kg8 {[%clk 0:02:33.1]} 27. Rxe7 {[%clk 0:03:52.4]}
27... gxh5 {[%clk 0:02:31.1]} 28. Bxh6 {[%clk 0:03:50.8]} 28... a5 {[%clk
0:02:23.9]} 29. Rg7+ {[%clk 0:03:48.8]} 29... Kh8 {[%clk 0:02:19.8]} 30. Rg6
{[%clk 0:03:47.1]} 30... Kh7 {[%clk 0:02:18]} 31. Rxb6 {[%clk 0:03:45.8]} 31...
Re8 {[%clk 0:02:13.7]} 32. Be3 {[%clk 0:03:45]} 32... Rf8 {[%clk 0:02:02]} 33.
Rh6+ {[%clk 0:03:43.4]} 33... Kg7 {[%clk 0:01:59.6]} 34. Rxh5 {[%clk 0:03:43.3]}
34... Kg6 {[%clk 0:01:58]} 35. Rxc5 {[%clk 0:03:42.3]} 35... Rf3 {[%clk
0:01:55.1]} 36. Rg5+ {[%clk 0:03:38.7]} 36... Kf6 {[%clk 0:01:47.2]} 37. Rg4
{[%clk 0:03:37.6]} 37... Ke6 {[%clk 0:01:43.2]} 38. Rf4 {[%clk 0:03:36.7]} 38...
Rxf4 {[%clk 0:01:38.6]} 39. Bxf4 {[%clk 0:03:36.6]} 39... Kf5 {[%clk 0:01:37.4]}
40. Kd2 {[%clk 0:03:36.4]} 40... Ke4 {[%clk 0:01:36.2]} 41. Kc3 {[%clk
0:03:35.4]} 41... Kf3 {[%clk 0:01:35.3]} 42. Be3 {[%clk 0:03:34.4]} 42... Ke2
{[%clk 0:01:32.7]} 43. Kb3 {[%clk 0:03:34.3]} 43... Kd1 {[%clk 0:01:31.6]} 44.
c4 {[%clk 0:03:33.9]} 44... Ke2 {[%clk 0:01:28.6]} 45. c5 {[%clk 0:03:33.8]}
45... Kd3 {[%clk 0:01:27.1]} 46. c6 {[%clk 0:03:33.7]} 46... Ke4 {[%clk
0:01:26.2]} 47. c7 {[%clk 0:03:33.6]} 47... Kf3 {[%clk 0:01:25.8]} 48. c8=Q
{[%clk 0:03:31.5]} 48... Ke2 {[%clk 0:01:25.7]} 49. Qg4+ {[%clk 0:03:27.9]}
49... Kd3 {[%clk 0:01:25.6]} 50. Qd1+ {[%clk 0:03:22.9]} 50... Ke4 {[%clk
0:01:25.5]} 51. Kc4 {[%clk 0:03:17.1]} 51... Kf5 {[%clk 0:01:21.9]} 52. Qh5+
{[%clk 0:03:15.8]} 52... Ke4 {[%clk 0:01:20.3]} 53. Qg4+ {[%clk 0:03:14.4]}
53... Ke5 {[%clk 0:01:18]} 54. Qf4+ {[%clk 0:03:13.5]} 54... Ke6 {[%clk
0:01:15.8]} 55. Bd4 {[%clk 0:03:10]} 55... a4 {[%clk 0:01:14.4]} 56. Qf6+ {[%clk
0:03:08.3]} 56... Kd7 {[%clk 0:01:11.3]} 57. Bc5 {[%clk 0:03:06.1]} 57... a3
{[%clk 0:01:10.5]} 58. Qd6+ {[%clk 0:03:04]} 58... Kc8 {[%clk 0:01:04.3]} 59.
Bb6 {[%clk 0:03:03.2]} 59... Kb7 {[%clk 0:01:00.9]} 60. Qc7+ {[%clk 0:03:02.3]}
60... Ka6 {[%clk 0:00:59.6]} 61. Qa7# {[%clk 0:03:01.7]} 1-0